fUSD/lending_fUSD_20260225
["ID","MTS","AMOUNT","RATE_DAILY","PERIOD"]
[406662361,1772046637836,-1714.51696471,0.00011099,2]
[406662362,1772046637846,-11452.32958548,0.00011099,2]
[406662363,1772046637857,-2081.5790444,0.00011099,2]
[406662394,1772046639920,-4085.06613492,0.00011099,2]
[406662395,1772046639930,-17618.97476474,0.00011099,2]
[406662396,1772046639940,-17618.97476474,0.00011099,2]
[406662397,1772046639950,-17618.97476474,0.00011099,2]
[406662398,1772046639960,-166.53,0.00011249,2]
[406662399,1772046639970,-1714.51696471,0.00011568,2]
[406662400,1772046639980,-17618.97476474,0.00011568,2]
[406662401,1772046639990,-150.0,0.0001157,2]
[406662402,1772046639999,-150.0,0.0001157,7]
[406662403,1772046640009,-191.38,0.00011986,2]
[406662404,1772046640018,-166.53,0.00012115,2]
[406662405,1772046640029,-1714.51696471,0.00012834,2]
[406662406,1772046640039,-17618.97476474,0.00012834,2]
[406662407,1772046640048,-166.53,0.0001298,2]
[406662408,1772046640059,-5627.87469091,0.00013,2]
[406662409,1772046640068,-563.76949661,0.00013,15]
[406662410,1772046640078,-215.91835857,0.00013396,2]
[406662412,1772046640090,-3240.0,0.00013425,2]
[406662414,1772046640100,-2730.51,0.00013671,2]
[406662416,1772046640111,-616.33,0.00013699,2]
[406662417,1772046640121,-200.0,0.00013699,2]
[406662418,1772046640131,-500.0,0.00013699,2]
[406662419,1772046640141,-500.0,0.00013699,2]
[406662421,1772046640151,-500.0,0.00013699,2]
[406662422,1772046640161,-500.0,0.00013699,2]
[406662423,1772046640171,-500.0,0.00013699,2]
[406662424,1772046640181,-500.0,0.00013699,2]
[406662425,1772046640191,-500.0,0.00013699,2]
[406662426,1772046640201,-160.89687395,0.00013699,2]
[406662427,1772046640210,-175.96468334,0.00013699,2]
[406662428,1772046640219,-161.12812418,0.00013699,2]
[406662429,1772046640229,-604.2577825,0.00013699,2]
[406662430,1772046640238,-524.32496394,0.00013699,2]
[406662431,1772046640248,-209.669428,0.00013699,2]
[406662432,1772046640257,-500.0,0.00013699,2]
[406662433,1772046640266,-500.0,0.00013699,2]
[406662434,1772046640275,-335.65029794,0.00013699,2]
[406662435,1772046640284,-500.0,0.00013699,2]
[406662436,1772046640293,-500.0,0.00013699,2]
[406662437,1772046640303,-500.0,0.00013699,2]
[406662438,1772046640312,-185.59048766,0.00013699,2]
[406662439,1772046640322,-500.0,0.00013699,2]
[406662440,1772046640332,-500.0,0.00013699,2]
[406662441,1772046640341,-500.0,0.00013699,2]
[406662442,1772046640351,-500.0,0.00013699,2]
[406662443,1772046640360,-500.0,0.00013699,2]
[406662444,1772046640369,-500.0,0.00013699,2]
[406662445,1772046640379,-500.0,0.00013699,2]
[406662446,1772046640388,-500.0,0.00013699,2]
[406662447,1772046640397,-308.64663473,0.00013699,2]
[406662448,1772046640407,-500.0,0.00013699,2]
[406662449,1772046640416,-500.0,0.00013699,2]
[406662450,1772046640425,-500.0,0.00013699,2]
[406662451,1772046640434,-500.0,0.00013699,2]
[406662452,1772046640444,-163.76963508,0.00013699,2]
[406662453,1772046640453,-500.0,0.00013699,2]
[406662454,1772046640462,-500.0,0.00013699,2]
[406662455,1772046640472,-337.75482183,0.00013699,2]
[406662456,1772046640482,-500.0,0.00013699,2]
[406662457,1772046640492,-500.0,0.00013699,2]
[406662458,1772046640501,-500.0,0.00013699,2]
[406662459,1772046640511,-374.88076834,0.00013699,2]
[406662460,1772046640521,-500.0,0.00013699,2]
[406662461,1772046640530,-502.589699,0.00013699,2]
[406662462,1772046640539,-500.0,0.00013699,2]
[406662463,1772046640548,-500.0,0.00013699,2]
[406662464,1772046640715,-500.0,0.00013699,2]
[406662465,1772046640726,-500.0,0.00013699,2]
[406662466,1772046640735,-500.0,0.00013699,2]
[406662467,1772046640749,-500.0,0.00013699,2]
[406662468,1772046640759,-500.0,0.00013699,2]
[406662469,1772046640768,-500.0,0.00013699,2]
[406662470,1772046640779,-500.0,0.00013699,2]
[406662471,1772046640789,-500.0,0.00013699,2]
[406662473,1772046640798,-500.0,0.00013699,2]
[406662474,1772046640808,-500.0,0.00013699,2]
[406662475,1772046640820,-500.0,0.00013699,2]
[406662476,1772046640829,-500.0,0.00013699,2]
[406662477,1772046640838,-500.0,0.00013699,2]
[406662478,1772046640848,-500.72491405,0.00013699,2]
[406662479,1772046640858,-500.0,0.00013699,2]
[406662480,1772046640867,-1714.51696471,0.00014101,2]
[406662481,1772046640877,-17618.97476474,0.00014101,2]
[406662482,1772046640886,-3989.13298594,0.0001411,2]
[406662483,1772046640895,-2288.4601003,0.0001421,7]
[406662484,1772046640905,-1000.0,0.00014247,2]
[406662485,1772046640915,-1000.0,0.00014247,2]
[406662486,1772046640925,-1000.0,0.00014247,2]
[406662487,1772046640935,-500.0,0.00014247,2]
[406662488,1772046640943,-500.0,0.00014247,2]
[406662489,1772046640953,-1000.0,0.00014247,2]
[406662490,1772046640962,-1000.0,0.00014247,2]
[406662491,1772046640973,-380.44800806,0.00014247,2]
[406662492,1772046640983,-1000.0,0.00014247,2]
[406662493,1772046640992,-1000.0,0.00014247,2]
[406662494,1772046641002,-1000.0,0.00014247,2]
[406662495,1772046641011,-1000.0,0.00014247,2]
[406662496,1772046641020,-1000.0,0.00014247,2]
[406662497,1772046641030,-1000.0,0.00014247,2]
[406662498,1772046641039,-1007.67306464,0.00014247,2]
[406662499,1772046641049,-500.0,0.00014247,2]
[406662500,1772046641058,-500.0,0.00014247,2]
[406662501,1772046641067,-500.0,0.00014247,2]
[406662502,1772046641077,-1008.34147468,0.00014247,2]
[406662503,1772046641086,-467.67692832,0.00014247,2]
[406662504,1772046641096,-351.72128687,0.00014247,2]
[406662505,1772046641107,-1000.0,0.00014247,2]
[406662506,1772046641116,-500.0,0.00014247,2]
[406662507,1772046641126,-776.00043833,0.00014247,2]
[406662508,1772046641136,-992.23312849,0.00014247,2]
[406662509,1772046641145,-800.44121468,0.00014247,2]
[406662510,1772046641155,-1000.0,0.00014247,2]
[406662511,1772046641165,-502.69399529,0.00014247,2]
[406662512,1772046641175,-1000.0,0.00014247,2]
[406662513,1772046641185,-504.88674942,0.00014247,2]
[406662514,1772046641195,-500.0,0.00014247,2]
[406662515,1772046641204,-500.0,0.00014247,2]
[406662516,1772046641213,-500.0,0.00014247,2]
[406662517,1772046641223,-500.0,0.00014247,2]
[406662518,1772046641232,-1000.0,0.00014247,2]
[406662519,1772046641242,-500.0,0.00014247,2]
[406662520,1772046641252,-1000.0,0.00014247,2]
[406662521,1772046641261,-1000.0,0.00014247,2]
[406662522,1772046641271,-1000.0,0.00014247,2]
[406662523,1772046641281,-500.0,0.00014247,2]
[406662524,1772046641290,-1000.0,0.00014247,2]
[406662525,1772046641300,-1000.0,0.00014247,2]
[406662526,1772046641310,-1000.0,0.00014247,2]
[406662527,1772046641321,-1000.0,0.00014247,2]
[406662528,1772046641332,-1000.0,0.00014247,2]
[406662529,1772046641342,-500.0,0.00014247,2]
[406662530,1772046641351,-616.33,0.00014384,2]
[406662531,1772046641360,-173.91437885,0.00014423,2]
[406662532,1772046641370,-160.0,0.00014423,2]
[406662533,1772046641380,-3989.13298592,0.00014651,2]
[406662534,1772046641390,-1000.0,0.00014795,2]
[406662535,1772046641400,-1000.0,0.00014795,2]
[406662536,1772046641409,-1005.84689332,0.00014795,2]
[406662537,1772046641419,-716.25934348,0.00014795,2]
[406662538,1772046641429,-1500.0,0.00014795,2]
[406662539,1772046641438,-541.36883601,0.00014795,2]
[406662540,1772046641447,-1500.0,0.00014795,2]
[406662541,1772046641459,-1091.6833327,0.00014795,2]
[406662542,1772046641469,-507.0,0.0001489,2]
[406662543,1772046641478,-250.0,0.00015,2]
[406662544,1772046641488,-616.33,0.00015068,2]
[406662545,1772046641498,-10024.89946181,0.0001512,2]
[406662546,1772046641507,-3989.13298592,0.00015193,2]
[406662547,1772046641516,-2000.0,0.00015342,2]
[406662548,1772046641526,-2000.0,0.00015342,2]
[406662549,1772046641535,-1714.51696471,0.00015367,2]
[406662550,1772046641545,-17618.97476474,0.00015367,2]
[406662551,1772046641554,-1000.0,0.00015507,2]
[406662552,1772046641563,-3989.13298592,0.00015734,2]
[406662553,1772046641573,-616.33,0.00015753,2]
[406662554,1772046641582,-2500.0,0.0001589,2]
[406662555,1772046641592,-1000.0,0.00015895,2]
[406662556,1772046641601,-1490.69996826,0.000162,5]
[406662557,1772046641611,-3989.13298592,0.00016276,2]
[406662558,1772046641620,-1000.0,0.00016282,2]
[406662559,1772046641629,-500.0,0.00016356,2]
[406662560,1772046641639,-500.0,0.00016356,2]
[406662561,1772046641648,-1352.0,0.00016438,2]
[406662562,1772046641658,-616.33,0.00016438,2]
[406662563,1772046641667,-2801.03849165,0.00016438,2]
[406662564,1772046641676,-507.0,0.00016604,3]
[406662565,1772046641685,-1714.51696471,0.00016634,2]
[406662566,1772046641695,-17618.97476474,0.00016634,2]
[406662567,1772046641705,-1000.0,0.0001667,2]
[406662568,1772046641714,-1352.0,0.00016712,2]
[406662569,1772046641724,-3989.13298592,0.00016817,2]
[406662570,1772046641733,-920.0,0.00016847,2]
[406662571,1772046641748,-1219.12,0.00016847,2]
[406662572,1772046641757,-495.503,0.00016847,2]
[406662573,1772046641767,-2456.0,0.00016847,2]
[406662574,1772046641776,-5982.0,0.00016847,2]
[406662575,1772046641787,-238.84865423,0.00016983,2]
[406662576,1772046641797,-1352.0,0.00016986,2]
[406662577,1772046641806,-500.0,0.00017,5]
[406662578,1772046641816,-364.33297037,0.00017,2]
[406662579,1772046641827,-113926.39499395,0.00017,2]
[406662580,1772046641836,-300.0,0.00017,2]
[406662581,1772046641846,-232.0,0.00017021,2]
[406662582,1772046641855,-1000.0,0.00017058,2]
[406662583,1772046641866,-277.35679052,0.00017099,2]
[406662584,1772046641875,-422.75816673,0.000171,2]
[406662585,1772046641884,-232.0,0.00017183,2]
[406662586,1772046641896,-10000.0,0.00017204,2]
[406662587,1772046641906,-1352.0,0.0001726,2]
[406662588,1772046641916,-232.0,0.00017299,2]
[406662589,1772046641925,-232.0,0.00017301,2]
[406662590,1772046641935,-232.0,0.00017348,2]
[406662591,1772046641945,-267.0,0.00017357,2]
[406662592,1772046641954,-3989.13298592,0.00017359,2]
[406662593,1772046641963,-300.0,0.0001737,5]
[406662594,1772046641973,-168.0,0.00017533,2]
[406662595,1772046641982,-1352.0,0.00017534,2]
[406662596,1772046641992,-232.0,0.00017595,2]
[406662597,1772046642001,-350.0,0.00017639,2]
[406662598,1772046642011,-1629.07763531,0.0001764,2]
[406662599,1772046642021,-287.61899177,0.00017647,2]
[406662600,1772046642030,-168.0,0.00017693,2]
[406662601,1772046642039,-150.0,0.00017698,2]
[406662602,1772046642049,-350.0,0.0001779,2]
[406662603,1772046642058,-350.0,0.00017801,2]
[406662604,1772046642067,-1352.0,0.00017808,2]
[406662605,1772046642081,-500.0,0.00017808,2]
[406662606,1772046642091,-200.0,0.00017856,2]
[406662607,1772046642100,-500.0,0.00017863,2]
[406662608,1772046642110,-1714.51696471,0.000179,2]
[406662609,1772046642119,-17618.97476474,0.000179,2]
[406662610,1772046642131,-3989.13298592,0.000179,2]
[406662611,1772046642140,-305.24173666,0.000179,2]
[406662612,1772046642149,-500.0,0.00017918,2]
[406662613,1772046642158,-168.0,0.0001793,2]
[406662614,1772046642168,-500.0,0.00017972,2]
[406662615,1772046642177,-1254.0,0.00017973,2]
[406662616,1772046642187,-350.04115682,0.00017994,4]
[406662617,1772046642196,-500.0,0.00017994,4]
[406662618,1772046642205,-500.0,0.00017994,4]
[406662619,1772046642214,-500.0,0.00017994,4]
[406662620,1772046642224,-500.0,0.00017994,4]
[406662621,1772046642234,-693.3919763,0.00017994,4]
[406662622,1772046642244,-500.0,0.00017994,4]
[406662623,1772046642253,-719.04747942,0.00017994,4]
[406662624,1772046642262,-500.0,0.00017994,4]
[406662625,1772046642271,-745.65223616,0.00017994,4]
[406662626,1772046642281,-500.0,0.00017994,4]
[406662627,1772046642290,-773.2413689,0.00017994,4]
[406662628,1772046642300,-151.0,0.00017994,4]
[406662629,1772046642310,-484.51217363,0.00017994,4]
[406662630,1772046642319,-801.85129955,0.00017994,4]
[406662631,1772046642328,-151.0,0.00017994,4]
[406662632,1772046642338,-831.51979763,0.00017994,4]
[406662633,1772046642347,-151.0,0.00017994,4]
[406662634,1772046642356,-862.28603014,0.00017994,4]
[406662635,1772046642366,-151.0,0.00017994,4]
[406662636,1772046642375,-151.0,0.00017994,4]
[406662637,1772046642384,-151.0,0.00017994,4]
[406662638,1772046642393,-151.0,0.00017994,4]
[406662639,1772046642402,-151.0,0.00017994,4]
[406662640,1772046642412,-151.0,0.00017994,4]
[406662641,1772046642421,-153.74158134,0.00017994,4]
[406662642,1772046642431,-500.0,0.00017994,4]
[406662644,1772046642439,-500.0,0.00017994,4]
[406662646,1772046642448,-500.0,0.00017994,4]
[406662647,1772046642458,-500.0,0.00017994,4]
[406662648,1772046642467,-500.0,0.00017994,4]
[406662649,1772046642476,-500.0,0.00017994,4]
[406662650,1772046642484,-500.0,0.00017994,4]
[406662651,1772046642493,-500.0,0.00017994,4]
[406662652,1772046642502,-500.0,0.00017994,4]
[406662653,1772046642511,-500.0,0.00017994,4]
[406662654,1772046642520,-500.0,0.00017994,4]
[406662655,1772046642529,-487.0,0.00017994,2]
[406662656,1772046642538,-487.0,0.00017994,2]
[406662657,1772046642546,-636.41,0.00017994,2]
[406662658,1772046642556,-300.0,0.00017999,2]
[406662659,1772046642565,-300.0,0.00017999,2]
[406662660,1772046642574,-300.0,0.00017999,2]
[406662661,1772046642583,-666.0,0.00017999,2]
[406662662,1772046642592,-300.0,0.00017999,2]
[406662664,1772046642601,-330.36078572,0.00017999,2]
[406662666,1772046642610,-8240.0,0.00018,2]
[406662667,1772046642619,-1000.0,0.00018,2]
[406662668,1772046642629,-1000.0,0.00018,2]
[406662669,1772046642639,-1000.0,0.00018,2]
[406662670,1772046642648,-1000.0,0.00018,2]
[406662671,1772046642657,-1000.0,0.00018,2]
[406662672,1772046642667,-1000.0,0.00018,2]
[406662673,1772046642676,-745.26998688,0.00018,2]
[406662674,1772046642686,-6482625.04458968,0.00018,2]
[406662678,1772046643066,-34709.8782036,0.00018,2]
[406662679,1772046643082,-682.75395563,0.00018,2]
[406662680,1772046643158,-1203.55824115,0.00018,2]
[406662681,1772046643169,-5315.1,0.00018,2]
[406662682,1772046643181,-35257.76374222,0.00018,2]
[406662884,1772046645550,-387.372,0.00018,2]
[406663165,1772047078372,-293.5,6.8e-05,2]
[406663166,1772047078405,-250.0,6.818e-05,2]
[406663167,1772047078453,-1913.0,6.836e-05,2]
[406663168,1772047094866,-587.0,6.836e-05,2]
[406663169,1772047094901,-500.0,6.873e-05,2]
[406663170,1772047094935,-250.0,6.931e-05,2]
[406663171,1772047094997,-326.0,7.024e-05,2]
[406663172,1772047194832,4371.25,4.911e-05,2]
[406663173,1772047195021,4371.25,5.123e-05,2]
[406663174,1772047195242,1257.51,5.334e-05,2]
[406663175,1772047195268,3113.74,5.334e-05,2]
[406663176,1772047195458,4371.25,5.546e-05,2]
[406663177,1772047196465,4371.25,5.757e-05,2]
[406663178,1772047196693,628.76,5.969e-05,2]
[406663179,1772047196716,3742.49,5.969e-05,2]
[406663180,1772047196909,1257.52,6.18e-05,2]
[406663181,1772047196937,3113.73,6.18e-05,2]
[406663182,1772047197122,1886.28,6.391e-05,2]
[406663183,1772047197146,2484.97,6.391e-05,2]
[406663188,1772047831763,-4371.25,6.603e-05,2]
[406663189,1772047831773,-250.0,6.616e-05,2]
[406663190,1772047831782,-2500.0,6.629e-05,2]
[406663191,1772047831792,-1200.0,6.737e-05,2]
[406663192,1772047831801,-2500.0,6.738e-05,2]
[406663193,1772047831811,-2500.0,6.738e-05,2]
[406663194,1772047831820,-4371.25,6.814e-05,2]
[406663195,1772047831829,-1921.576,6.921e-05,2]
[406663196,1772047831838,-157.651,6.921e-05,2]
[406663197,1772047831848,-1254.0,6.932e-05,2]
[406663198,1772047831857,-250.0,6.961e-05,2]
[406663199,1772047831866,-213922.93519647,6.962e-05,2]
[406663200,1772047831877,-250.0,6.962e-05,2]
[406663201,1772047831892,-308.29206342,6.962e-05,2]
[406663296,1772047838065,-2603.83148825,6.962e-05,2]
[406663297,1772047838077,-3490.23611741,6.962e-05,2]
[406663298,1772047838089,-1444.15247826,6.962e-05,2]
[406663299,1772047838102,-4241.59355284,6.962e-05,2]
[406663304,1772047838136,-383648.13459784,6.962e-05,2]
[406663483,1772047840033,-234595.28578948,6.962e-05,2]
[406663501,1772047840196,-23553.80500638,6.962e-05,2]
[406663508,1772047840255,-1613.38149951,6.962e-05,2]
[406663510,1772047840267,-1130328.35221014,6.962e-05,2]
[406663512,1772047840276,-4371.25,7.026e-05,2]
[406663515,1772047840286,-1000.0,7.061e-05,2]
[406663517,1772047840296,-4371.25,7.237e-05,2]
[406663519,1772047840307,-150.99,7.252e-05,2]
[406663521,1772047840317,-9999.99,7.252e-05,2]
[406663523,1772047840330,-2500.0,7.263e-05,2]
[406663525,1772047840340,-250.0,7.263e-05,2]
[406663527,1772047840350,-2500.0,7.263e-05,2]
[406663529,1772047840361,-250.0,7.263e-05,2]
[406663531,1772047840370,-1680.0,7.41e-05,2]
[406663533,1772047840380,-4371.25,7.449e-05,2]
[406663535,1772047840389,-1600.0,7.506e-05,2]
[406663537,1772047840399,-166.66,7.51e-05,2]
[406663539,1772047840409,-4371.25,7.66e-05,2]
[406663541,1772047840418,-166.66,7.758e-05,2]
[406663543,1772047840427,-4371.25,7.872e-05,2]
[406663545,1772047840437,-500.0,7.903e-05,2]
[406663547,1772047840446,-166.66,8.006e-05,2]
[406663548,1772047840456,-4371.25,8.083e-05,2]
[406663549,1772047840465,-2351.0,8.151e-05,2]
[406663550,1772047840475,-500.0,8.219e-05,2]
[406663551,1772047840484,-500.0,8.219e-05,2]
[406663552,1772047840495,-576.50509164,8.219e-05,2]
[406663553,1772047840505,-188.367994,8.219e-05,2]
[406663554,1772047840515,-153.86,8.219e-05,2]
[406663555,1772047840524,-1000.0,8.219e-05,2]
[406663556,1772047840534,-166.66,8.254e-05,2]
[406663557,1772047840543,-4371.25,8.295e-05,2]
[406663558,1772047840552,-1600.0,8.444e-05,2]
[406663559,1772047840562,-166.66,8.502e-05,2]
[406663560,1772047840571,-4371.25,8.506e-05,2]
[406663561,1772047840580,-4371.25,8.718e-05,2]
[406663562,1772047840589,-250.0,8.725e-05,2]
[406663563,1772047840599,-166.66,8.749e-05,2]
[406663564,1772047840610,-4371.25,8.929e-05,2]
[406663565,1772047840620,-25314.65,8.929e-05,2]
[406663566,1772047840630,-3292.0,8.966e-05,2]
[406663567,1772047840639,-1000.0,9.247e-05,2]
[406663568,1772047840649,-1600.0,9.382e-05,2]
[406663569,1772047840658,-153.86,9.589e-05,2]
[406663570,1772047840668,-1500000.0,9.59e-05,2]
[406663571,1772047840678,-4609.0,9.863e-05,2]
[406663572,1772047840687,-152.62086833,9.863e-05,2]
[406663573,1772047840697,-1000.0,0.00010274,2]
[406663574,1772047840707,-500.0,0.000103,2]
[406663575,1772047840717,-500.0,0.000103,2]
[406663576,1772047840726,-500.0,0.000103,2]
[406663577,1772047840736,-500.0,0.000103,2]
[406663578,1772047840746,-500.0,0.000103,2]
[406663579,1772047840756,-1600.0,0.0001032,2]
[406663580,1772047840765,-6453.0,0.00010849,2]
[406663581,1772047840775,-4462.77891914,0.000109,2]
[406663582,1772047840785,-4462.77891912,0.000109,2]
[406663583,1772047840795,-4462.77891912,0.000109,2]
[406663584,1772047840805,-2730.51,0.00010932,2]
[406663585,1772047840815,-166.66,0.00010959,2]
[406663586,1772047840825,-153.86,0.00010959,2]
[406663587,1772047840834,-150.0,0.00010959,2]
[406663588,1772047840844,-32879.9337,0.00010999,2]
[406663589,1772047840856,-1000.0,0.00010999,2]
[406663590,1772047840866,-166.66,0.00011068,2]
[406663591,1772047840876,-166.66,0.00011178,2]
[406663592,1772047840885,-1600.0,0.00011258,2]
[406663593,1772047840895,-166.66,0.00011288,2]
[406663594,1772047840904,-1000.0,0.00011301,2]
[406663595,1772047840915,-166.66,0.00011397,2]
[406663596,1772047840925,-166.66,0.00011507,2]
[406663597,1772047840934,-150.0,0.00011573,2]
[406663598,1772047840944,-150.0,0.00011573,7]
[406663599,1772047840953,-4462.77891912,0.00011629,2]
[406663600,1772047840963,-24763.0,0.000117,2]
[406663601,1772047840972,-1649.0,0.00011934,2]
[406663602,1772047840982,-191.38,0.00012015,2]
[406663603,1772047840991,-5531.0,0.000121,3]
[406663604,1772047841000,-153.86,0.00012329,2]
[406663605,1772047841010,-1000.0,0.00012329,2]
[406663606,1772047841021,-5531.0,0.000126,5]
[406663607,1772047841031,-500.0,0.0001289,2]
[406663608,1772047841040,-204.59409661,0.0001289,2]
[406663609,1772047841051,-500.0,0.0001289,2]
[406663610,1772047841060,-500.0,0.0001289,2]
[406663611,1772047841070,-500.0,0.0001289,2]
[406663612,1772047841080,-500.0,0.0001289,2]
[406663613,1772047841089,-500.0,0.0001289,2]
[406663614,1772047841099,-500.0,0.0001289,2]
[406663615,1772047841116,-500.0,0.0001289,2]
[406663616,1772047841127,-500.0,0.0001289,2]
[406663617,1772047841136,-500.0,0.0001289,2]
[406663618,1772047841146,-500.0,0.0001289,2]
[406663619,1772047841156,-300.0,0.00013021,2]
[406663620,1772047841166,-4462.77891912,0.00013197,2]
[406663621,1772047841176,-500.0,0.00013698,2]
[406663622,1772047841187,-500.0,0.00013698,2]
[406663623,1772047841198,-500.0,0.00013698,2]
[406663624,1772047841207,-269.06190613,0.00013698,2]
[406663625,1772047841217,-500.0,0.00013698,2]
[406663626,1772047841226,-500.0,0.00013698,2]
[406663627,1772047841236,-558.2352126,0.00013698,2]
[406663628,1772047841247,-500.0,0.00013698,2]
[406663629,1772047841256,-500.0,0.00013698,2]
[406663630,1772047841266,-453.06341333,0.00013698,2]
[406663631,1772047841276,-500.0,0.00013698,2]
[406663632,1772047841286,-500.0,0.00013698,2]
[406663633,1772047841295,-387.31685331,0.00013698,2]
[406663634,1772047841305,-500.0,0.00013698,2]
[406663635,1772047841315,-500.0,0.00013698,2]
[406663636,1772047841325,-500.0,0.00013698,2]
[406663637,1772047841335,-500.0,0.00013698,2]
[406663638,1772047841345,-400.83516378,0.00013698,2]
[406663639,1772047841356,-500.0,0.00013699,2]
[406663640,1772047841367,-620.36908714,0.00013699,2]
[406663641,1772047841376,-500.0,0.00013699,2]
[406663642,1772047841386,-160.89687395,0.00013699,2]
[406663643,1772047841396,-500.0,0.00013699,2]
[406663644,1772047841405,-500.0,0.00013699,2]
[406663645,1772047841415,-161.12812418,0.00013699,2]
[406663646,1772047841424,-500.0,0.00013699,2]
[406663647,1772047841434,-500.0,0.00013699,2]
[406663648,1772047841443,-500.0,0.00013699,2]
[406663649,1772047841454,-500.0,0.00013699,2]
[406663650,1772047841463,-500.0,0.00013699,2]
[406663651,1772047841473,-337.75482183,0.00013699,2]
[406663652,1772047841483,-500.0,0.00013699,2]
[406663653,1772047841492,-500.0,0.00013699,2]
[406663654,1772047841502,-500.0,0.00013699,2]
[406663655,1772047841512,-500.0,0.00013699,2]
[406663656,1772047841521,-500.0,0.00013699,2]
[406663657,1772047841532,-500.0,0.00013699,2]
[406663658,1772047841542,-500.0,0.00013699,2]
[406663659,1772047841552,-500.0,0.00013699,2]
[406663660,1772047841562,-162.08719206,0.00013699,2]
[406663661,1772047841572,-163.76963508,0.00013699,2]
[406663662,1772047841582,-500.0,0.00013699,2]
[406663663,1772047841591,-500.0,0.00013699,2]
[406663664,1772047841601,-161.14332278,0.00013699,2]
[406663665,1772047841611,-500.0,0.00013699,2]
[406663666,1772047841620,-500.0,0.00013699,2]
[406663667,1772047841630,-160.16,0.00013699,2]
[406663668,1772047841640,-500.0,0.00013699,2]
[406663669,1772047841649,-524.32496394,0.00013699,2]
[406663670,1772047841659,-500.0,0.00013699,2]
[406663671,1772047841669,-500.0,0.00013699,2]
[406663672,1772047841679,-500.0,0.00013699,2]
[406663673,1772047841689,-500.0,0.00013699,2]
[406663674,1772047841698,-500.0,0.00013699,2]
[406663675,1772047841708,-500.0,0.00013699,2]
[406663676,1772047841719,-335.65029794,0.00013699,2]
[406663677,1772047841730,-500.0,0.00013699,2]
[406663678,1772047841741,-500.0,0.00013699,2]
[406663679,1772047841751,-500.0,0.00013699,2]
[406663680,1772047841761,-500.0,0.00013699,2]
[406663681,1772047841771,-500.0,0.00013699,2]
[406663682,1772047841780,-278.93340404,0.00013699,2]
[406663683,1772047841790,-163.99667352,0.00013699,2]
[406663684,1772047841800,-500.0,0.00013699,2]
[406663685,1772047841809,-500.0,0.00013699,2]
[406663686,1772047841819,-500.0,0.00013699,2]
[406663687,1772047841829,-500.0,0.00013699,2]
[406663688,1772047841839,-500.0,0.00013699,2]
[406663689,1772047841849,-500.0,0.00013699,2]
[406663690,1772047841860,-500.0,0.00013699,2]
[406663691,1772047841870,-500.0,0.00013699,2]
[406663692,1772047841882,-500.0,0.00013699,2]
[406663693,1772047841891,-500.0,0.00013699,2]
[406663694,1772047841901,-500.0,0.00013699,2]
[406663695,1772047841911,-209.669428,0.00013699,2]
[406663696,1772047841921,-308.64663473,0.00013699,2]
[406663697,1772047841931,-500.0,0.00013699,2]
[406663698,1772047841940,-500.0,0.00013699,2]
[406663699,1772047841950,-500.0,0.00013699,2]
[406663700,1772047841959,-500.0,0.00013699,2]
[406663701,1772047841968,-500.0,0.00013699,2]
[406663702,1772047841978,-500.0,0.00013699,2]
[406663703,1772047841989,-500.0,0.00013699,2]
[406663704,1772047841999,-500.0,0.00013699,2]
[406663705,1772047842010,-500.0,0.00013699,2]
[406663706,1772047842020,-500.0,0.00013699,2]